fUST/lending_fUST_20250620
["ID","MTS","AMOUNT","RATE_DAILY","PERIOD"]
[366693290,1750414253424,-460.0,0.00022191,6]
[366693291,1750414253435,-152.910982,0.00022191,7]
[366693292,1750414253446,-460.0,0.00022191,6]
[366693293,1750414253456,-460.0,0.00022191,6]
[366693294,1750414253465,-460.0,0.00022191,6]
[366693295,1750414253475,-460.0,0.00022191,6]
[366693296,1750414253484,-928.2,0.00022191,6]
[366693297,1750414253493,-460.0,0.00022191,6]
[366693298,1750414253502,-737.7,0.00022191,6]
[366693299,1750414253511,-460.0,0.00022191,6]
[366693300,1750414253521,-460.0,0.00022191,6]
[366693301,1750414253530,-460.0,0.00022191,6]
[366693302,1750414253540,-460.0,0.00022191,6]
[366693303,1750414253549,-460.0,0.00022191,6]
[366693304,1750414253559,-461.022193,0.00022191,7]
[366693305,1750414253568,-460.0,0.00022191,6]
[366693306,1750414253578,-461.022193,0.00022191,7]
[366693307,1750414253588,-460.0,0.00022191,6]
[366693308,1750414253597,-460.0,0.00022191,6]
[366693309,1750414253606,-460.0,0.00022191,6]
[366693310,1750414253615,-506.97116688,0.00022191,6]
[366693311,1750414253625,-943.0,0.00022191,6]
[366693312,1750414253635,-460.0,0.00022191,6]
[366693313,1750414253647,-489.71,0.00022191,6]
[366693314,1750414253657,-430.0,0.00022191,6]
[366693315,1750414253668,-460.0,0.00022191,6]
[366693316,1750414253679,-460.0,0.00022191,6]
[366693317,1750414253689,-460.0,0.00022191,6]
[366693318,1750414253700,-295.17396407,0.00022191,6]
[366693319,1750414253710,-460.0,0.00022191,6]
[366693320,1750414253720,-460.0,0.00022191,6]
[366693321,1750414253729,-460.0,0.00022191,6]
[366693322,1750414253739,-460.0,0.00022191,6]
[366693323,1750414253748,-460.0,0.00022191,6]
[366693324,1750414253757,-460.0,0.00022191,6]
[366693325,1750414253766,-460.0,0.00022191,6]
[366693326,1750414253776,-460.0,0.00022191,6]
[366693327,1750414253785,-460.0,0.00022191,6]
[366693328,1750414253794,-460.0,0.00022191,6]
[366693329,1750414253803,-460.0,0.00022191,6]
[366693330,1750414253813,-460.0,0.00022191,6]
[366693331,1750414253822,-460.0,0.00022191,6]
[366693332,1750414253831,-460.0,0.00022191,6]
[366693333,1750414253841,-460.0,0.00022191,6]
[366693334,1750414253850,-460.0,0.00022191,6]
[366693335,1750414253859,-460.0,0.00022191,6]
[366693336,1750414253869,-460.0,0.00022191,2]
[366693337,1750414253878,-400.73896627,0.00022191,6]
[366693338,1750414253888,-460.0,0.00022191,6]
[366693339,1750414253897,-571.19264051,0.00022191,6]
[366693340,1750414253907,-599.21071419,0.00022191,6]
[366693341,1750414253916,-460.0,0.00022191,6]
[366693342,1750414253925,-460.0,0.00022191,6]
[366693343,1750414253935,-460.0,0.00022191,6]
[366693344,1750414253944,-782.36,0.00022191,6]
[366693345,1750414253954,-300.0,0.00022191,6]
[366693346,1750414253963,-1373.98,0.00022191,6]
[366693347,1750414253973,-460.0,0.00022191,6]
[366693348,1750414253982,-460.0,0.00022191,6]
[366693349,1750414253991,-460.0,0.00022191,6]
[366693350,1750414254000,-507.27650334,0.00022191,6]
[366693351,1750414254010,-460.0,0.00022191,6]
[366693352,1750414254020,-843.77,0.00022191,2]
[366693353,1750414254029,-460.0,0.00022191,6]
[366693354,1750414254039,-460.0,0.00022191,6]
[366693355,1750414254048,-460.0,0.00022191,6]
[366693356,1750414254057,-460.0,0.00022191,6]
[366693357,1750414254066,-460.0,0.00022191,6]
[366693358,1750414254076,-460.0,0.00022191,6]
[366693359,1750414254085,-460.0,0.00022191,6]
[366693360,1750414254094,-313.19630834,0.00022191,6]
[366693361,1750414254104,-324.42737698,0.00022191,6]
[366693362,1750414254113,-460.0,0.00022191,6]
[366693363,1750414254122,-585.03096324,0.00022272,2]
[366693364,1750414254131,-173.58477055,0.00022299,2]
[366693365,1750414254141,-687.3592294,0.00022314,7]
[366693366,1750414254151,-206.0,0.00022369,2]
[366693367,1750414254160,-153.0,0.00022384,2]
[366693368,1750414254169,-153.0,0.00022384,2]
[366693369,1750414254179,-153.0,0.00022384,2]
[366693370,1750414254188,-153.0,0.00022384,2]
[366693371,1750414254197,-153.0,0.00022384,2]
[366693372,1750414254207,-153.0,0.00022384,2]
[366693373,1750414254216,-153.0,0.00022384,2]
[366693374,1750414254227,-151.0,0.00022413,7]
[366693375,1750414254239,-151.0,0.00022413,7]
[366693376,1750414254250,-687.3592294,0.00022452,7]
[366693377,1750414254259,-206.0,0.00022464,2]
[366693378,1750414254268,-460.0,0.00022465,6]
[366693379,1750414254279,-460.0,0.00022465,6]
[366693380,1750414254288,-460.0,0.00022465,6]
[366693381,1750414254299,-460.0,0.00022465,6]
[366693382,1750414254310,-335.42142322,0.00022465,6]
[366693383,1750414254319,-499.94341089,0.00022465,6]
[366693384,1750414254329,-460.0,0.00022465,6]
[366693385,1750414254339,-460.0,0.00022465,6]
[366693386,1750414254349,-400.0,0.00022465,6]
[366693387,1750414254358,-435.30222939,0.00022465,6]
[366693388,1750414254368,-318.81530803,0.00022465,6]
[366693389,1750414254377,-161.21898,0.00022465,7]
[366693390,1750414254387,-460.0,0.00022465,6]
[366693391,1750414254397,-151.0,0.00022465,7]
[366693392,1750414254407,-460.0,0.00022465,6]
[366693393,1750414254416,-460.0,0.00022465,6]
[366693394,1750414254425,-361.82717825,0.00022465,6]
[366693395,1750414254435,-339.69361993,0.00022465,6]
[366693396,1750414254444,-460.0,0.00022465,6]
[366693397,1750414254453,-460.0,0.00022465,6]
[366693398,1750414254463,-470.55514802,0.00022465,6]
[366693399,1750414254472,-152.892316,0.00022465,7]
[366693400,1750414254481,-434.70166182,0.00022465,6]
[366693401,1750414254491,-380.0,0.00022465,6]
[366693402,1750414254500,-460.0,0.00022465,6]
[366693403,1750414254510,-253.27863974,0.00022465,6]
[366693404,1750414254519,-460.0,0.00022465,6]
[366693405,1750414254528,-460.0,0.00022465,6]
[366693406,1750414254538,-424.09902209,0.00022465,6]
[366693407,1750414254547,-460.0,0.00022465,6]
[366693408,1750414254557,-151.0,0.00022465,7]
[366693409,1750414254566,-460.0,0.00022465,6]
[366693410,1750414254576,-373.51182502,0.00022465,6]
[366693411,1750414254586,-460.0,0.00022465,6]
[366693412,1750414254596,-460.0,0.00022465,6]
[366693413,1750414254605,-440.0,0.00022465,6]
[366693414,1750414254614,-155.74958061,0.00022465,6]
[366693415,1750414254624,-460.0,0.00022465,6]
[366693416,1750414254634,-460.0,0.00022465,6]
[366693417,1750414254645,-460.0,0.00022465,6]
[366693418,1750414254655,-415.95325318,0.00022465,6]
[366693419,1750414254666,-415.36314958,0.00022465,6]
[366693420,1750414254675,-463.38890426,0.00022465,6]
[366693421,1750414254685,-381.0839327,0.00022465,6]
[366693422,1750414254695,-460.0,0.00022465,6]
[366693423,1750414254704,-460.0,0.00022465,6]
[366693424,1750414254714,-460.0,0.00022465,6]
[366693425,1750414254723,-460.0,0.00022465,6]
[366693426,1750414254733,-296.92083235,0.00022465,6]
[366693427,1750414254743,-494.27388399,0.00022465,6]
[366693428,1750414254752,-460.0,0.00022465,6]
[366693429,1750414254761,-460.0,0.00022465,6]
[366693430,1750414254771,-224.312279,0.00022465,6]
[366693431,1750414254780,-460.0,0.00022465,6]
[366693432,1750414254790,-398.19785296,0.00022465,6]
[366693433,1750414254799,-460.0,0.00022465,6]
[366693434,1750414254809,-460.0,0.00022465,6]
[366693435,1750414254818,-485.04424909,0.00022465,6]
[366693436,1750414254828,-389.62863995,0.00022465,6]
[366693437,1750414254838,-460.0,0.00022465,6]
[366693438,1750414254848,-460.0,0.00022465,6]
[366693439,1750414254858,-460.0,0.00022465,6]
[366693440,1750414254867,-460.0,0.00022465,6]
[366693441,1750414254877,-460.0,0.00022465,6]
[366693442,1750414254886,-460.0,0.00022465,6]
[366693443,1750414254895,-460.0,0.00022465,6]
[366693444,1750414254905,-460.0,0.00022465,6]
[366693445,1750414254915,-460.0,0.00022465,6]
[366693446,1750414254925,-460.0,0.00022465,6]
[366693447,1750414254935,-460.0,0.00022465,6]
[366693448,1750414254946,-460.0,0.00022465,6]
[366693449,1750414254955,-460.0,0.00022465,6]
[366693450,1750414254965,-460.0,0.00022465,6]
[366693451,1750414254975,-460.0,0.00022465,6]
[366693452,1750414254984,-460.0,0.00022465,6]
[366693453,1750414254994,-354.89766306,0.00022465,6]
[366693454,1750414255003,-460.0,0.00022465,6]
[366693455,1750414255013,-460.0,0.00022465,6]
[366693456,1750414255023,-460.0,0.00022465,6]
[366693457,1750414255032,-379.60495594,0.00022465,6]
[366693458,1750414255041,-460.0,0.00022465,6]
[366693459,1750414255051,-460.0,0.00022465,6]
[366693460,1750414255060,-460.0,0.00022465,6]
[366693461,1750414255069,-460.0,0.00022465,6]
[366693462,1750414255079,-460.0,0.00022465,6]
[366693463,1750414255088,-460.0,0.00022465,6]
[366693464,1750414255098,-460.0,0.00022465,6]
[366693465,1750414255107,-460.0,0.00022465,6]
[366693466,1750414255117,-460.0,0.00022465,6]
[366693467,1750414255126,-407.77504069,0.00022465,6]
[366693468,1750414255136,-460.0,0.00022465,6]
[366693469,1750414255145,-464.19680534,0.00022465,6]
[366693470,1750414255155,-406.88159365,0.00022465,6]
[366693471,1750414255165,-435.88035199,0.00022465,6]
[366693472,1750414255174,-460.0,0.00022465,6]
[366693473,1750414255183,-460.0,0.00022465,6]
[366693474,1750414255193,-460.0,0.00022465,6]
[366693475,1750414255201,-370.0,0.00022465,6]
[366693476,1750414255211,-460.0,0.00022465,6]
[366693477,1750414255221,-430.0,0.00022465,6]
[366693478,1750414255234,-460.0,0.00022465,6]
[366693479,1750414255244,-289.45721925,0.00022465,6]
[366693480,1750414255254,-460.0,0.00022465,6]
[366693481,1750414255263,-430.0,0.00022465,6]
[366693482,1750414255274,-399.58619677,0.00022465,6]
[366693483,1750414255283,-460.0,0.00022465,6]
[366693484,1750414255292,-460.0,0.00022465,2]
[366693485,1750414255303,-460.0,0.00022465,6]
[366693486,1750414255312,-460.0,0.00022465,6]
[366693487,1750414255322,-151.0,0.00022465,7]
[366693488,1750414255332,-441.90303684,0.00022465,6]
[366693489,1750414255341,-460.0,0.00022465,6]
[366693490,1750414255350,-397.39472332,0.00022465,6]
[366693491,1750414255359,-460.0,0.00022465,6]
[366693492,1750414255368,-178.24051437,0.00022465,6]
[366693493,1750414255377,-460.0,0.00022465,6]
[366693494,1750414255386,-460.0,0.00022465,6]
[366693495,1750414255395,-460.0,0.00022465,6]
[366693496,1750414255404,-460.0,0.00022465,6]
[366693497,1750414255413,-460.0,0.00022465,6]
[366693498,1750414255423,-460.0,0.00022465,6]
[366693499,1750414255432,-460.0,0.00022465,6]
[366693500,1750414255441,-460.0,0.00022465,6]
[366693501,1750414255450,-460.0,0.00022465,6]
[366693502,1750414255579,-460.0,0.00022465,6]
[366693503,1750414255589,-460.0,0.00022465,6]
[366693504,1750414255599,-460.0,0.00022465,6]
[366693505,1750414255609,-417.14808937,0.00022465,6]
[366693506,1750414255621,-460.0,0.00022465,6]
[366693507,1750414255633,-460.0,0.00022465,6]
[366693508,1750414255646,-460.0,0.00022465,6]
[366693509,1750414255656,-460.0,0.00022465,6]
[366693510,1750414255666,-460.0,0.00022465,6]
[366693511,1750414255676,-460.0,0.00022465,6]
[366693512,1750414255686,-151.0,0.00022465,7]
[366693513,1750414255696,-460.0,0.00022465,6]
[366693514,1750414255707,-460.0,0.00022465,6]
[366693515,1750414255718,-460.0,0.00022465,6]
[366693516,1750414255727,-151.0,0.00022465,7]
[366693517,1750414255737,-151.0,0.00022465,7]
[366693518,1750414255748,-460.0,0.00022465,6]
[366693519,1750414255757,-460.0,0.00022465,6]
[366693520,1750414255767,-460.0,0.00022465,6]
[366693521,1750414255777,-460.0,0.00022465,6]
[366693522,1750414255786,-460.0,0.00022465,6]
[366693523,1750414255796,-460.0,0.00022465,6]
[366693524,1750414255805,-460.0,0.00022465,6]
[366693525,1750414255815,-410.0,0.00022465,6]
[366693526,1750414255824,-300.28518161,0.00022465,6]
[366693527,1750414255834,-460.0,0.00022465,6]
[366693528,1750414255843,-460.0,0.00022465,6]
[366693529,1750414255853,-460.0,0.00022465,6]
[366693530,1750414255863,-423.42979274,0.00022465,6]
[366693531,1750414255872,-460.0,0.00022465,6]
[366693532,1750414255881,-460.0,0.00022465,6]
[366693533,1750414255891,-425.96863246,0.00022465,6]
[366693534,1750414255900,-262.87698252,0.00022465,6]
[366693535,1750414255912,-460.0,0.00022465,6]
[366693536,1750414255922,-460.0,0.00022465,6]
[366693537,1750414255932,-460.0,0.00022465,6]
[366693538,1750414255943,-460.0,0.00022465,6]
[366693539,1750414255954,-460.0,0.00022465,6]
[366693540,1750414255963,-460.0,0.00022465,6]
[366693541,1750414255973,-440.0,0.00022465,6]
[366693542,1750414255982,-460.0,0.00022465,6]
[366693543,1750414255991,-460.0,0.00022465,6]
[366693544,1750414256001,-369.39682644,0.00022465,6]
[366693545,1750414256011,-466.79470954,0.00022465,6]
[366693546,1750414256021,-351.24236937,0.00022465,6]
[366693547,1750414256030,-500.0,0.00022465,6]
[366693548,1750414256039,-460.0,0.00022465,6]
[366693549,1750414256049,-460.0,0.00022465,6]
[366693550,1750414256059,-460.0,0.00022465,6]
[366693551,1750414256068,-460.0,0.00022465,6]
[366693552,1750414256077,-460.0,0.00022465,6]
[366693553,1750414256087,-460.0,0.00022465,6]
[366693554,1750414256096,-577.86,0.00022465,6]
[366693555,1750414256106,-460.0,0.00022465,6]
[366693556,1750414256115,-460.0,0.00022465,6]
[366693557,1750414256124,-460.0,0.00022465,6]
[366693558,1750414256133,-601.51963669,0.00022465,6]
[366693559,1750414256143,-460.0,0.00022465,6]
[366693560,1750414256152,-460.0,0.00022465,6]
[366693561,1750414256162,-204.14743241,0.00022465,6]
[366693562,1750414256171,-373.28436183,0.00022465,6]
[366693563,1750414256180,-460.0,0.00022465,6]
[366693564,1750414256190,-460.0,0.00022465,6]
[366693565,1750414256199,-460.0,0.00022465,6]
[366693566,1750414256208,-460.0,0.00022465,6]
[366693567,1750414256217,-460.0,0.00022465,6]
[366693568,1750414256230,-460.0,0.00022465,6]
[366693569,1750414256240,-460.0,0.00022465,6]
[366693570,1750414256249,-460.0,0.00022465,6]
[366693571,1750414256259,-460.0,0.00022465,6]
[366693572,1750414256271,-460.0,0.00022465,6]
[366693573,1750414256280,-460.0,0.00022465,6]
[366693574,1750414256289,-460.0,0.00022465,6]
[366693575,1750414256298,-440.0,0.00022465,6]
[366693576,1750414256308,-460.0,0.00022465,6]
[366693577,1750414256318,-1189.1,0.00022465,6]
[366693578,1750414256329,-460.0,0.00022465,6]
[366693579,1750414256339,-460.0,0.00022465,6]
[366693580,1750414256348,-460.0,0.00022465,6]
[366693581,1750414256357,-460.0,0.00022465,6]
[366693582,1750414256367,-460.0,0.00022465,6]
[366693583,1750414256376,-460.0,0.00022465,6]
[366693584,1750414256385,-460.0,0.00022465,6]
[366693585,1750414256394,-360.11180664,0.00022465,6]
[366693586,1750414256403,-460.0,0.00022465,6]
[366693587,1750414256414,-460.0,0.00022465,6]
[366693588,1750414256423,-505.17,0.00022465,6]
[366693589,1750414256432,-460.0,0.00022465,6]
[366693590,1750414256441,-346.28425184,0.00022465,6]
[366693591,1750414256451,-421.74580925,0.00022465,6]
[366693592,1750414256460,-460.0,0.00022465,6]
[366693593,1750414256471,-460.0,0.00022465,6]
[366693594,1750414256481,-1639.91,0.00022465,6]
[366693595,1750414256491,-460.0,0.00022465,6]
[366693596,1750414256501,-460.0,0.00022465,6]
[366693597,1750414256511,-460.0,0.00022465,6]
[366693598,1750414256521,-460.0,0.00022465,6]
[366693599,1750414256532,-1631.31,0.00022465,6]
[366693600,1750414256542,-460.0,0.00022465,6]
[366693601,1750414256551,-460.0,0.00022465,6]
[366693602,1750414256561,-460.0,0.00022465,6]
[366693603,1750414256570,-460.0,0.00022465,6]
[366693604,1750414256579,-185.88656461,0.00022465,6]
[366693605,1750414256588,-460.0,0.00022465,6]
[366693606,1750414256597,-1235.74,0.00022465,6]
[366693607,1750414256606,-460.0,0.00022465,6]
[366693608,1750414256616,-460.0,0.00022465,6]
[366693609,1750414256625,-460.0,0.00022465,6]
[366693610,1750414256634,-460.0,0.00022465,6]
[366693611,1750414256643,-397.17685676,0.00022465,6]
[366693612,1750414256654,-460.0,0.00022465,6]
[366693613,1750414256663,-460.0,0.00022465,6]
[366693614,1750414256672,-460.0,0.00022465,6]
[366693615,1750414256681,-460.0,0.00022465,6]
[366693616,1750414256691,-460.0,0.00022465,6]
[366693617,1750414256700,-1325.04,0.00022465,6]
[366693618,1750414256710,-460.0,0.00022465,6]
[366693619,1750414256718,-460.0,0.00022465,6]
[366693620,1750414256728,-460.0,0.00022465,6]
[366693621,1750414256738,-392.8424469,0.00022465,6]
[366693622,1750414256747,-460.0,0.00022465,6]
[366693623,1750414256756,-460.0,0.00022465,6]
[366693624,1750414256765,-460.0,0.00022465,6]
[366693625,1750414256774,-197.599213,0.00022465,2]
[366693626,1750414256783,-460.0,0.00022465,6]
[366693627,1750414256793,-197.599213,0.00022465,2]
[366693628,1750414256802,-395.84668366,0.00022465,6]
[366693629,1750414256811,-197.599213,0.00022465,2]
[366693630,1750414256821,-197.599213,0.00022465,2]
[366693631,1750414256831,-460.0,0.00022465,6]
[366693632,1750414256840,-460.0,0.00022465,6]
[366693633,1750414256850,-460.0,0.00022465,6]
[366693634,1750414256860,-460.0,0.00022465,6]
[366693635,1750414256870,-460.0,0.00022465,6]
[366693636,1750414256879,-582.22,0.00022465,6]
[366693637,1750414256889,-460.0,0.00022465,6]
[366693638,1750414256899,-460.0,0.00022465,6]
[366693639,1750414256908,-151.0,0.00022465,7]
[366693640,1750414256917,-151.0,0.00022465,7]
[366693641,1750414256927,-460.0,0.00022465,6]
[366693642,1750414256937,-460.0,0.00022465,6]
[366693643,1750414256946,-958.44,0.00022465,6]
[366693644,1750414256955,-460.0,0.00022465,6]
[366693645,1750414256964,-460.0,0.00022465,6]
[366693646,1750414256974,-379.03956629,0.00022465,6]
[366693647,1750414256983,-460.0,0.00022465,6]
[366693648,1750414256992,-460.0,0.00022465,6]
[366693649,1750414257002,-197.75602816,0.00022465,6]
[366693650,1750414257011,-647.26,0.00022465,6]
[366693651,1750414257021,-460.0,0.00022465,6]
[366693652,1750414257030,-460.0,0.00022465,6]
[366693653,1750414257040,-460.0,0.00022465,6]
[366693654,1750414257050,-460.0,0.00022465,6]
[366693655,1750414257059,-250.0,0.00022465,6]
[366693656,1750414257069,-460.0,0.00022465,6]
[366693657,1750414257078,-460.0,0.00022465,6]
[366693658,1750414257087,-460.0,0.00022465,6]
[366693659,1750414257097,-460.0,0.00022465,6]
[366693660,1750414257106,-500.0,0.00022465,6]
[366693661,1750414257116,-460.0,0.00022465,6]
[366693662,1750414257126,-493.86,0.00022465,6]
[366693663,1750414257135,-460.36,0.00022465,6]
[366693664,1750414257145,-460.0,0.00022465,6]
[366693665,1750414257154,-460.0,0.00022465,6]
[366693666,1750414257164,-260.0,0.00022465,6]
[366693667,1750414257173,-460.0,0.00022465,6]
[366693668,1750414257183,-352.62685036,0.00022465,6]
[366693669,1750414257193,-460.0,0.00022465,6]
[366693670,1750414257202,-460.0,0.00022465,6]
[366693671,1750414257211,-460.0,0.00022465,6]
[366693672,1750414257221,-460.0,0.00022465,6]
[366693673,1750414257238,-460.0,0.00022465,6]
[366693674,1750414257247,-460.0,0.00022465,6]
[366693675,1750414257257,-460.0,0.00022465,6]
[366693676,1750414257267,-460.0,0.00022465,6]
[366693677,1750414257276,-460.0,0.00022465,6]
[366693678,1750414257285,-460.0,0.00022465,6]
[366693679,1750414257295,-460.0,0.00022465,6]
[366693680,1750414257306,-460.0,0.00022465,6]
[366693681,1750414257316,-401.46287726,0.00022465,6]
[366693682,1750414257326,-460.0,0.00022465,6]
[366693683,1750414257335,-460.0,0.00022465,6]
[366693684,1750414257345,-460.0,0.00022465,6]
[366693685,1750414257355,-460.0,0.00022465,6]
[366693686,1750414257364,-460.0,0.00022465,6]
[366693687,1750414257373,-460.0,0.00022465,6]
[366693688,1750414257383,-460.0,0.00022465,6]
[366693689,1750414257392,-460.0,0.00022465,6]
[366693690,1750414257401,-460.0,0.00022465,6]
[366693691,1750414257411,-460.0,0.00022465,6]
[366693692,1750414257420,-460.0,0.00022465,6]
[366693693,1750414257429,-267.41598105,0.00022465,6]
[366693694,1750414257438,-460.0,0.00022465,6]
[366693695,1750414257448,-460.0,0.00022465,6]
[366693696,1750414257457,-928.2,0.00022465,6]
[366693697,1750414257466,-460.0,0.00022465,6]
[366693698,1750414257475,-737.7,0.00022465,6]
[366693699,1750414257485,-460.0,0.00022465,6]
[366693700,1750414257495,-460.0,0.00022465,6]
[366693701,1750414257504,-460.0,0.00022465,6]
[366693702,1750414257513,-460.0,0.00022465,6]
[366693703,1750414257523,-203.36134795,0.00022465,6]
[366693704,1750414257532,-461.022193,0.00022465,7]
[366693705,1750414257542,-460.0,0.00022465,6]
[366693706,1750414257551,-461.022193,0.00022465,7]
[366693707,1750414257561,-460.0,0.00022465,6]
[366693708,1750414257571,-460.0,0.00022465,6]
[366693709,1750414257580,-460.0,0.00022465,6]
[366693710,1750414257590,-943.0,0.00022465,6]
[366693711,1750414257599,-460.0,0.00022465,6]
[366693712,1750414257609,-489.71,0.00022465,6]
[366693713,1750414257620,-460.0,0.00022465,6]
[366693714,1750414257629,-460.0,0.00022465,6]
[366693715,1750414257639,-430.0,0.00022465,6]
[366693716,1750414257648,-460.0,0.00022465,6]
[366693717,1750414257658,-167.04344271,0.00022465,6]
[366693718,1750414257667,-460.0,0.00022465,6]
[366693719,1750414257677,-372.94758063,0.00022465,6]
[366693720,1750414257686,-460.0,0.00022465,6]
[366693721,1750414257696,-460.0,0.00022465,6]
[366693722,1750414257706,-460.0,0.00022465,6]
[366693723,1750414257716,-460.0,0.00022465,6]
[366693724,1750414257726,-460.0,0.00022465,6]
[366693725,1750414257736,-460.0,0.00022465,6]
[366693726,1750414257746,-460.0,0.00022465,6]
[366693727,1750414257756,-460.0,0.00022465,6]
[366693728,1750414257766,-375.03161163,0.00022465,6]
[366693729,1750414257775,-436.30141164,0.00022465,6]
[366693730,1750414257786,-460.0,0.00022465,6]
[366693731,1750414257795,-460.0,0.00022465,6]
[366693732,1750414257804,-460.0,0.00022465,6]
[366693733,1750414257815,-460.0,0.00022465,2]
[366693734,1750414257824,-460.0,0.00022465,6]
[366693735,1750414257834,-460.0,0.00022465,6]
[366693736,1750414257844,-224.15951517,0.00022465,6]
[366693737,1750414257854,-460.0,0.00022465,6]
[366693738,1750414257863,-782.36,0.00022465,6]
[366693739,1750414257873,-311.19186771,0.00022465,6]
[366693740,1750414257883,-1373.98,0.00022465,6]
[366693741,1750414257893,-460.0,0.00022465,6]
[366693742,1750414257903,-460.0,0.00022465,6]
[366693743,1750414257913,-460.0,0.00022465,6]
[366693744,1750414257922,-460.0,0.00022465,6]
[366693745,1750414257933,-843.77,0.00022465,2]
[366693746,1750414257944,-460.0,0.00022465,6]
[366693747,1750414257954,-460.0,0.00022465,6]
[366693748,1750414257964,-460.0,0.00022465,6]
[366693749,1750414257974,-445.23708259,0.00022465,6]
[366693750,1750414257985,-460.0,0.00022465,6]
[366693751,1750414257996,-288.85063419,0.00022465,6]
[366693752,1750414258007,-460.0,0.00022465,6]
[366693753,1750414258016,-500.0,0.00022473,2]
[366693754,1750414258026,-500.0,0.00022473,2]
[366693755,1750414258036,-500.0,0.00022473,2]
[366693756,1750414258046,-500.0,0.00022473,2]
[366693757,1750414258055,-500.0,0.00022473,2]
[366693758,1750414258066,-500.0,0.00022473,2]
[366693759,1750414258075,-500.0,0.00022473,2]
[366693760,1750414258085,-500.0,0.00022473,2]
[366693761,1750414258095,-552.66385559,0.00022473,2]
[366693762,1750414258104,-500.0,0.00022473,2]
[366693763,1750414258113,-500.0,0.00022473,2]
[366693764,1750414258123,-500.0,0.00022473,2]
[366693765,1750414258133,-500.0,0.00022473,2]
[366693766,1750414258143,-528.64009666,0.00022473,2]
[366693767,1750414258152,-500.0,0.00022473,2]
[366693768,1750414258162,-600.0,0.00022473,2]
[366693769,1750414258293,-206.0,0.00022498,2]
[366693770,1750414258304,-503.57843623,0.00022521,2]
[366693771,1750414258314,-1000.0,0.00022521,2]
[366693772,1750414258323,-502.25914762,0.00022521,2]
[366693773,1750414258333,-500.0,0.00022521,2]
[366693774,1750414258342,-711.06366694,0.00022521,2]
[366693775,1750414258352,-794.62287652,0.00022521,2]
[366693776,1750414258361,-500.0,0.0002254,2]
[366693777,1750414258371,-687.3592294,0.0002259,7]
[366693778,1750414258380,-160.0,0.0002259,7]
[366693779,1750414258389,-206.0,0.00022657,2]
[366693780,1750414258400,-215.0738,0.00022701,2]
[366693781,1750414258410,-516.0,0.0002272,2]
[366693782,1750414258420,-500.0,0.00022721,2]
[366693783,1750414258429,-1075.20353236,0.00022721,2]
[366693784,1750414258439,-507.78191988,0.00022721,2]
[366693785,1750414258449,-1000.0,0.00022721,2]
[366693786,1750414258458,-1000.0,0.00022721,2]
[366693787,1750414258468,-151.0,0.00022721,7]
[366693788,1750414258477,-151.0,0.00022721,7]
[366693789,1750414258486,-151.0,0.00022721,7]